[Event "Titled Tuesday Blitz August 16 Late 2022"]
[White "Harvey, Marcus R"]
[Black "Avila Pavas, Santiago"]
[WhiteFideId "400092"]
[BlackFideId "4437128"]
[WhiteElo "2485"]
[BlackElo "2291"]
[Result "0-1"]
[Round "06"]
[TimeControl "180+1"]
[Date "2022.08.16"]
[WhiteClock "0:00:01"]
[BlackClock "0:00:08"]

1. c4 {[%clk 0:03:00]}  Nf6 {[%clk 0:03:00]} 2. Nf3 {[%clk 0:02:59]}  e6 {[%clk 0:03:00]} 3. b3 {[%clk 0:02:57]}  d5 {[%clk 0:03:00]} 4. Bb2 {[%clk 0:02:57]}  b6 {[%clk 0:02:59]} 5. g3 {[%clk 0:02:49]}  Bb7 {[%clk 0:02:59]} 6. cxd5 {[%clk 0:02:47]}  exd5 {[%clk 0:02:58]} 7. Bg2 {[%clk 0:02:47]}  Nbd7 {[%clk 0:02:58]} 8. O-O {[%clk 0:02:47]}  a6 {[%clk 0:02:51]} 9. Nc3 {[%clk 0:02:43]}  Bd6 {[%clk 0:02:50]} 10. d4 {[%clk 0:02:42]}  O-O {[%clk 0:02:48]} 11. e3 {[%clk 0:02:40]}  Qe7 {[%clk 0:02:48]} 12. Rc1 {[%clk 0:02:40]}  Rae8 {[%clk 0:02:40]} 13. Qc2 {[%clk 0:02:36]}  c6 {[%clk 0:02:37]} 14. Nd2 {[%clk 0:02:33]}  g6 {[%clk 0:02:36]} 15. Rfe1 {[%clk 0:02:31]}  Nh5 {[%clk 0:02:30]} 16. e4 {[%clk 0:02:29]}  f5 {[%clk 0:02:20]} 17. e5 {[%clk 0:02:25]}  Ba3 {[%clk 0:02:18]} 18. Bxa3 {[%clk 0:02:24]}  Qxa3 {[%clk 0:02:19]} 19. f4 {[%clk 0:02:22]}  Ng7 {[%clk 0:02:18]} 20. Ne2 {[%clk 0:02:13]}  Ne6 {[%clk 0:02:18]} 21. Nf3 {[%clk 0:02:12]}  Rc8 {[%clk 0:02:12]} 22. Qd2 {[%clk 0:02:05]}  Rfe8 {[%clk 0:02:11]} 23. h4 {[%clk 0:02:04]}  h5 {[%clk 0:02:08]} 24. Ng5 {[%clk 0:02:02]}  Ndf8 {[%clk 0:02:08]} 25. Rc2 {[%clk 0:01:57]}  Red8 {[%clk 0:02:07]} 26. Rec1 {[%clk 0:01:56]}  c5 {[%clk 0:02:08]} 27. dxc5 {[%clk 0:01:52]}  bxc5 {[%clk 0:02:07]} 28. Kh2 {[%clk 0:01:49]}  Ba8 {[%clk 0:02:03]} 29. b4 {[%clk 0:01:33]}  d4 {[%clk 0:01:56]} 30. Bxa8 {[%clk 0:01:24]}  Rxa8 {[%clk 0:01:47]} 31. Rc4 {[%clk 0:00:53]}  d3 {[%clk 0:01:22]} 32. Ng1 {[%clk 0:00:51]}  cxb4 {[%clk 0:01:16]} 33. Rc6 {[%clk 0:00:48]}  Nxg5 {[%clk 0:01:11]} 34. hxg5 {[%clk 0:00:40]}  Rab8 {[%clk 0:00:48]} 35. e6 {[%clk 0:00:18]}  Re8 {[%clk 0:00:48]} 36. Re1 {[%clk 0:00:15]}  b3 {[%clk 0:00:38]} 37. axb3 {[%clk 0:00:14]}  Rxb3 {[%clk 0:00:37]} 38. Qe3 {[%clk 0:00:10]}  Qb2+ {[%clk 0:00:13]} 39. Kh3 {[%clk 0:00:07]}  d2 {[%clk 0:00:14]} 40. Qa7 {[%clk 0:00:01]}  Rxg3+ {[%clk 0:00:08]} 41. Kxg3 {[%clk 0:00:01]}  dxe1=Q+ {[%clk 0:00:08]} 42. Kh3 {[%clk 0:00:01]}  Qf1+ {[%clk 0:00:08]} 0-1


[Site "https://www.chess.com"]

[Event "Titled Tuesday Blitz August 16 Late 2022"]
[White "Isajevsky, Anton"]
[Black "Fier, Alexandr"]
[WhiteFideId "4142500"]
[BlackFideId "2107139"]
[WhiteElo "2510"]
[BlackElo "2598"]
[Result "1-0"]
[Round "06"]
[TimeControl "180+1"]
[Date "2022.08.16"]
[WhiteClock "0:00:04"]
[BlackClock "0:00:17"]

1. c4 {[%clk 0:03:00]}  Nf6 {[%clk 0:02:49]} 2. Nc3 {[%clk 0:03:00]}  b6 {[%clk 0:02:49]} 3. e4 {[%clk 0:02:49]}  Bb7 {[%clk 0:02:48]} 4. d3 {[%clk 0:02:38]}  e5 {[%clk 0:02:47]} 5. g3 {[%clk 0:02:33]}  Nc6 {[%clk 0:02:47]} 6. Bg2 {[%clk 0:02:32]}  Bc5 {[%clk 0:02:48]} 7. Nge2 {[%clk 0:02:31]}  h5 {[%clk 0:02:47]} 8. h3 {[%clk 0:02:29]}  d6 {[%clk 0:02:41]} 9. Be3 {[%clk 0:02:11]}  Bc8 {[%clk 0:02:40]} 10. d4 {[%clk 0:02:04]}  exd4 {[%clk 0:02:30]} 11. Nxd4 {[%clk 0:02:04]}  Nxd4 {[%clk 0:02:29]} 12. Bxd4 {[%clk 0:02:05]}  Be6 {[%clk 0:02:04]} 13. Nd5 {[%clk 0:01:40]}  Bxd5 {[%clk 0:02:04]} 14. cxd5 {[%clk 0:01:37]}  h4 {[%clk 0:02:02]} 15. g4 {[%clk 0:01:29]}  Qe7 {[%clk 0:01:53]} 16. O-O {[%clk 0:01:22]}  Bxd4 {[%clk 0:01:33]} 17. Qxd4 {[%clk 0:01:21]}  Qe5 {[%clk 0:01:33]} 18. Qa4+ {[%clk 0:00:54]}  Nd7 {[%clk 0:01:06]} 19. f4 {[%clk 0:00:53]}  Qxb2 {[%clk 0:01:06]} 20. e5 {[%clk 0:00:25]}  b5 {[%clk 0:01:06]} 21. Qa5 {[%clk 0:00:11]}  Qd4+ {[%clk 0:01:04]} 22. Kh1 {[%clk 0:00:11]}  Qb6 {[%clk 0:01:05]} 23. Qc3 {[%clk 0:00:08]}  O-O {[%clk 0:01:05]} 24. e6 {[%clk 0:00:07]}  Nc5 {[%clk 0:01:00]} 25. f5 {[%clk 0:00:04]}  f6 {[%clk 0:01:00]} 26. Qe1 {[%clk 0:00:03]}  Nd3 {[%clk 0:00:46]} 27. Qxh4 {[%clk 0:00:03]}  Qe3 {[%clk 0:00:46]} 28. Rad1 {[%clk 0:00:03]}  Ne5 {[%clk 0:00:45]} 29. Rfe1 {[%clk 0:00:02]}  Qh6 {[%clk 0:00:43]} 30. Qg3 {[%clk 0:00:02]}  a5 {[%clk 0:00:42]} 31. h4 {[%clk 0:00:02]}  g5 {[%clk 0:00:36]} 32. fxg6 {[%clk 0:00:02]}  Qxg6 {[%clk 0:00:37]} 33. Bh3 {[%clk 0:00:01]}  Kh8 {[%clk 0:00:36]} 34. Rf1 {[%clk 0:00:01]}  Rg8 {[%clk 0:00:36]} 35. Rd4 {[%clk 0:00:01]}  Raf8 {[%clk 0:00:36]} 36. Kh2 {[%clk 0:00:01]}  f5 {[%clk 0:00:30]} 37. g5 {[%clk 0:00:01]}  b4 {[%clk 0:00:28]} 38. Rdf4 {[%clk 0:00:01]}  Qh5 {[%clk 0:00:26]} 39. Bxf5 {[%clk 0:00:02]}  Qe2+ {[%clk 0:00:14]} 40. R1f2 {[%clk 0:00:01]}  Qe1 {[%clk 0:00:14]} 41. Bh3 {[%clk 0:00:01]}  Rxf4 {[%clk 0:00:14]} 42. Qxf4 {[%clk 0:00:02]}  Ng6 {[%clk 0:00:13]} 43. Qf6+ {[%clk 0:00:02]}  Rg7 {[%clk 0:00:13]} 44. h5 {[%clk 0:00:02]}  Qe5+ {[%clk 0:00:12]} 45. Qxe5 {[%clk 0:00:01]}  Nxe5 {[%clk 0:00:13]} 46. Rf8+ {[%clk 0:00:01]}  Kh7 {[%clk 0:00:13]} 47. Bf5+ {[%clk 0:00:01]}  Ng6 {[%clk 0:00:14]} 48. Bxg6+ {[%clk 0:00:01]}  Rxg6 {[%clk 0:00:15]} 49. hxg6+ {[%clk 0:00:02]}  Kg7 {[%clk 0:00:15]} 50. e7 {[%clk 0:00:03]}  Kxg6 {[%clk 0:00:16]} 51. e8=Q+ {[%clk 0:00:03]}  Kxg5 {[%clk 0:00:17]} 52. Qe6 {[%clk 0:00:04]} 1-0


[Site "https://www.chess.com"]

[Event "Titled Tuesday Blitz August 16 Late 2022"]
[White "Jorajuria Mendoza, Algol"]
[Black "Sokolovsky, Yahli"]
[WhiteFideId "5128897"]
[BlackFideId "2820242"]
[WhiteElo "1600"]
[BlackElo "1867"]
[Result "0-1"]
[Round "06"]
[TimeControl "180+1"]
[Date "2022.08.18"]
[WhiteClock "0:00:00"]
[BlackClock "0:00:00"]

1. e4 {[%clk 0:00:00]}  g6 {[%clk 0:00:00]} 2. d4 {[%clk 0:00:00]}  Bg7 {[%clk 0:00:00]} 3. Nc3 {[%clk 0:00:00]}  d6 {[%clk 0:00:00]} 4. Bc4 {[%clk 0:00:00]}  e6 {[%clk 0:00:00]} 5. Be3 {[%clk 0:00:00]}  Nf6 {[%clk 0:00:00]} 6. f3 {[%clk 0:00:00]}  d5 {[%clk 0:00:00]} 7. exd5 {[%clk 0:00:00]}  exd5 {[%clk 0:00:00]} 8. Bd3 {[%clk 0:00:00]}  Qe7 {[%clk 0:00:00]} 9. Qe2 {[%clk 0:00:00]}  O-O {[%clk 0:00:00]} 10. Bf4 {[%clk 0:00:00]}  Qb4 {[%clk 0:00:00]} 11. O-O-O {[%clk 0:00:00]}  Nc6 {[%clk 0:00:00]} 12. a3 {[%clk 0:00:00]}  Qxd4 {[%clk 0:00:00]} 13. Bxc7 {[%clk 0:00:00]}  Re8 {[%clk 0:00:00]} 14. Qf1 {[%clk 0:00:00]}  Qc5 {[%clk 0:00:00]} 15. Nge2 {[%clk 0:00:00]}  Nb4 {[%clk 0:00:00]} 16. axb4 {[%clk 0:00:00]}  Qxc7 {[%clk 0:00:00]} 17. Nd4 {[%clk 0:00:00]}  Qb6 {[%clk 0:00:00]} 18. Bb5 {[%clk 0:00:00]}  Rd8 {[%clk 0:00:00]} 19. Na4 {[%clk 0:00:00]}  Qd6 {[%clk 0:00:00]} 20. c3 {[%clk 0:00:00]}  a5 {[%clk 0:00:00]} 21. bxa5 {[%clk 0:00:00]}  Rxa5 {[%clk 0:00:00]} 22. Qd3 {[%clk 0:00:00]}  Bd7 {[%clk 0:00:00]} 23. Bxd7 {[%clk 0:00:00]}  Qxd7 {[%clk 0:00:00]} 24. b3 {[%clk 0:00:00]}  b5 {[%clk 0:00:00]} 25. Nc5 {[%clk 0:00:00]}  Qa7 {[%clk 0:00:00]} 26. b4 {[%clk 0:00:00]}  Ra1+ {[%clk 0:00:00]} 27. Kd2 {[%clk 0:00:00]}  Bh6+ {[%clk 0:00:00]} 28. Ke2 {[%clk 0:00:00]}  Re8+ {[%clk 0:00:00]} 29. Kf2 {[%clk 0:00:00]}  Ra2+ {[%clk 0:00:00]} 30. Kg3 {[%clk 0:00:00]}  Qc7+ {[%clk 0:00:00]} 0-1


[Site "https://www.chess.com"]

[Event "Titled Tuesday Blitz August 16 Late 2022"]
[White "Kambrath, Yannick"]
[Black "Miszler, Levente"]
[WhiteFideId "20632525"]
[BlackFideId "763276"]
[WhiteElo "2236"]
[BlackElo "1966"]
[Result "1/2-1/2"]
[Round "06"]
[TimeControl "180+1"]
[Date "2022.08.18"]
[WhiteClock "0:00:00"]
[BlackClock "0:00:00"]

1. e4 {[%clk 0:00:00]}  e6 {[%clk 0:00:00]} 2. d4 {[%clk 0:00:00]}  d5 {[%clk 0:00:00]} 3. Nd2 {[%clk 0:00:00]}  f5 {[%clk 0:00:00]} 4. exf5 {[%clk 0:00:00]}  exf5 {[%clk 0:00:00]} 5. Ngf3 {[%clk 0:00:00]}  Nf6 {[%clk 0:00:00]} 6. Bd3 {[%clk 0:00:00]}  Bd6 {[%clk 0:00:00]} 7. O-O {[%clk 0:00:00]}  O-O {[%clk 0:00:00]} 8. Ne5 {[%clk 0:00:00]}  Be6 {[%clk 0:00:00]} 9. c4 {[%clk 0:00:00]}  Nbd7 {[%clk 0:00:00]} 10. Re1 {[%clk 0:00:00]}  Ne4 {[%clk 0:00:00]} 11. Nxd7 {[%clk 0:00:00]}  Bxh2+ {[%clk 0:00:00]} 12. Kxh2 {[%clk 0:00:00]}  Qh4+ {[%clk 0:00:00]} 13. Kg1 {[%clk 0:00:00]}  Qxf2+ {[%clk 0:00:00]} 14. Kh1 {[%clk 0:00:00]}  Qh4+ {[%clk 0:00:00]} 15. Kg1 {[%clk 0:00:00]}  Qf2+ {[%clk 0:00:00]} 16. Kh1 {[%clk 0:00:00]}  Qh4+ {[%clk 0:00:00]} 17. Kg1 {[%clk 0:00:00]}  Qf2+ {[%clk 0:00:00]} 1/2-1/2


[Site "https://www.chess.com"]

[Event "Titled Tuesday Blitz August 16 Late 2022"]
[White "Karaev, Seit-Amet"]
[Black "Sarkar, Justin"]
[WhiteFideId "4169549"]
[BlackFideId "2010011"]
[WhiteElo "2272"]
[BlackElo "2076"]
[Result "1-0"]
[Round "06"]
[TimeControl "180+1"]
[Date "2022.08.18"]
[WhiteClock "0:00:00"]
[BlackClock "0:00:00"]

1. e4 {[%clk 0:00:00]}  b6 {[%clk 0:00:00]} 2. d4 {[%clk 0:00:00]}  g6 {[%clk 0:00:00]} 3. Nc3 {[%clk 0:00:00]}  Bg7 {[%clk 0:00:00]} 4. Be3 {[%clk 0:00:00]}  Bb7 {[%clk 0:00:00]} 5. f3 {[%clk 0:00:00]}  e6 {[%clk 0:00:00]} 6. Qd2 {[%clk 0:00:00]}  d6 {[%clk 0:00:00]} 7. O-O-O {[%clk 0:00:00]}  Nd7 {[%clk 0:00:00]} 8. h4 {[%clk 0:00:00]}  h6 {[%clk 0:00:00]} 9. h5 {[%clk 0:00:00]}  g5 {[%clk 0:00:00]} 10. Kb1 {[%clk 0:00:00]}  a6 {[%clk 0:00:00]} 11. d5 {[%clk 0:00:00]}  b5 {[%clk 0:00:00]} 12. Bd4 {[%clk 0:00:00]}  Bxd4 {[%clk 0:00:00]} 13. Qxd4 {[%clk 0:00:00]}  e5 {[%clk 0:00:00]} 14. Qd2 {[%clk 0:00:00]}  Ne7 {[%clk 0:00:00]} 15. g4 {[%clk 0:00:00]}  Nc5 {[%clk 0:00:00]} 16. Nce2 {[%clk 0:00:00]}  c6 {[%clk 0:00:00]} 17. dxc6 {[%clk 0:00:00]}  Nxc6 {[%clk 0:00:00]} 18. Qxd6 {[%clk 0:00:00]}  Qxd6 {[%clk 0:00:00]} 19. Rxd6 {[%clk 0:00:00]}  Ke7 {[%clk 0:00:00]} 20. Rd5 {[%clk 0:00:00]}  Ne6 {[%clk 0:00:00]} 21. Ng3 {[%clk 0:00:00]}  Ncd4 {[%clk 0:00:00]} 22. c3 {[%clk 0:00:00]}  Nc6 {[%clk 0:00:00]} 23. Nf5+ {[%clk 0:00:00]}  Kf6 {[%clk 0:00:00]} 24. Nd6 {[%clk 0:00:00]}  Rab8 {[%clk 0:00:00]} 25. Nxb7 {[%clk 0:00:00]}  Rxb7 {[%clk 0:00:00]} 26. Ne2 {[%clk 0:00:00]}  Rd8 {[%clk 0:00:00]} 27. Ng3 {[%clk 0:00:00]}  Nf4 {[%clk 0:00:00]} 28. Rxd8 {[%clk 0:00:00]}  Nxd8 {[%clk 0:00:00]} 29. Kc2 {[%clk 0:00:00]}  Nde6 {[%clk 0:00:00]} 30. Nf5 {[%clk 0:00:00]}  Rc7 {[%clk 0:00:00]} 31. Nxh6 {[%clk 0:00:00]}  Nd4+ {[%clk 0:00:00]} 32. Kd2 {[%clk 0:00:00]}  Nxf3+ {[%clk 0:00:00]} 33. Ke3 {[%clk 0:00:00]}  Ne1 {[%clk 0:00:00]} 34. Nf5 {[%clk 0:00:00]} 1-0


[Site "https://www.chess.com"]

[Event "Titled Tuesday Blitz August 16 Late 2022"]
[White "Kolb, Tobias"]
[Black "Stanojoski, Zvonko"]
[WhiteFideId "12992321"]
[BlackFideId "15000257"]
[WhiteElo "2224"]
[BlackElo "2364"]
[Result "1-0"]
[Round "06"]
[TimeControl "180+1"]
[Date "2022.08.18"]
[WhiteClock "0:00:00"]
[BlackClock "0:00:00"]

1. e4 {[%clk 0:00:00]}  c5 {[%clk 0:00:00]} 2. Nc3 {[%clk 0:00:00]}  g6 {[%clk 0:00:00]} 3. g3 {[%clk 0:00:00]}  Bg7 {[%clk 0:00:00]} 4. Bg2 {[%clk 0:00:00]}  Nc6 {[%clk 0:00:00]} 5. d3 {[%clk 0:00:00]}  Rb8 {[%clk 0:00:00]} 6. Be3 {[%clk 0:00:00]}  d6 {[%clk 0:00:00]} 7. Qd2 {[%clk 0:00:00]}  b5 {[%clk 0:00:00]} 8. Nf3 {[%clk 0:00:00]}  b4 {[%clk 0:00:00]} 9. Nd1 {[%clk 0:00:00]}  Bg4 {[%clk 0:00:00]} 10. O-O {[%clk 0:00:00]}  Nf6 {[%clk 0:00:00]} 11. h3 {[%clk 0:00:00]}  Bxf3 {[%clk 0:00:00]} 12. Bxf3 {[%clk 0:00:00]}  O-O {[%clk 0:00:00]} 13. Bg2 {[%clk 0:00:00]}  Nd7 {[%clk 0:00:00]} 14. Bh6 {[%clk 0:00:00]}  e6 {[%clk 0:00:00]} 15. Bxg7 {[%clk 0:00:00]}  Kxg7 {[%clk 0:00:00]} 16. f4 {[%clk 0:00:00]}  f5 {[%clk 0:00:00]} 17. exf5 {[%clk 0:00:00]}  Nd4 {[%clk 0:00:00]} 18. fxe6 {[%clk 0:00:00]}  Nxe6 {[%clk 0:00:00]} 19. Ne3 {[%clk 0:00:00]}  Nf6 {[%clk 0:00:00]} 20. f5 {[%clk 0:00:00]}  Nd4 {[%clk 0:00:00]} 21. fxg6 {[%clk 0:00:00]}  hxg6 {[%clk 0:00:00]} 22. c3 {[%clk 0:00:00]}  bxc3 {[%clk 0:00:00]} 23. bxc3 {[%clk 0:00:00]}  Ne6 {[%clk 0:00:00]} 24. Rae1 {[%clk 0:00:00]}  Qd7 {[%clk 0:00:00]} 25. Rxf6 {[%clk 0:00:00]}  Rxf6 {[%clk 0:00:00]} 26. Ng4 {[%clk 0:00:00]}  g5 {[%clk 0:00:00]} 27. Nxf6 {[%clk 0:00:00]}  Kxf6 {[%clk 0:00:00]} 28. Bd5 {[%clk 0:00:00]}  Re8 {[%clk 0:00:00]} 29. h4 {[%clk 0:00:00]}  gxh4 {[%clk 0:00:00]} 30. Qh6+ {[%clk 0:00:00]}  Kf7 {[%clk 0:00:00]} 31. Qh7+ {[%clk 0:00:00]} 1-0


[Site "https://www.chess.com"]

[Event "Titled Tuesday Blitz August 16 Late 2022"]
[White "Kopczynski, Michal"]
[Black "Averjanov, Alexey"]
[WhiteFideId "1124200"]
[BlackFideId "14109867"]
[WhiteElo "2235"]
[BlackElo "2399"]
[Result "0-1"]
[Round "06"]
[TimeControl "180+1"]
[Date "2022.08.18"]
[WhiteClock "0:00:00"]
[BlackClock "0:00:00"]

1. e4 {[%clk 0:00:00]}  c6 {[%clk 0:00:00]} 2. d4 {[%clk 0:00:00]}  d5 {[%clk 0:00:00]} 3. e5 {[%clk 0:00:00]}  Bf5 {[%clk 0:00:00]} 4. g4 {[%clk 0:00:00]}  Be4 {[%clk 0:00:00]} 5. f3 {[%clk 0:00:00]}  Bg6 {[%clk 0:00:00]} 6. h4 {[%clk 0:00:00]}  h5 {[%clk 0:00:00]} 7. Bd3 {[%clk 0:00:00]}  Bxd3 {[%clk 0:00:00]} 8. Qxd3 {[%clk 0:00:00]}  hxg4 {[%clk 0:00:00]} 9. fxg4 {[%clk 0:00:00]}  e6 {[%clk 0:00:00]} 10. g5 {[%clk 0:00:00]}  Ne7 {[%clk 0:00:00]} 11. Bf4 {[%clk 0:00:00]}  Nf5 {[%clk 0:00:00]} 12. Nf3 {[%clk 0:00:00]}  g6 {[%clk 0:00:00]} 13. Nbd2 {[%clk 0:00:00]}  c5 {[%clk 0:00:00]} 14. O-O-O {[%clk 0:00:00]}  Nc6 {[%clk 0:00:00]} 15. dxc5 {[%clk 0:00:00]}  Bxc5 {[%clk 0:00:00]} 16. Nb3 {[%clk 0:00:00]}  Be7 {[%clk 0:00:00]} 17. h5 {[%clk 0:00:00]}  gxh5 {[%clk 0:00:00]} 18. Kb1 {[%clk 0:00:00]}  Qb6 {[%clk 0:00:00]} 19. a3 {[%clk 0:00:00]}  O-O-O {[%clk 0:00:00]} 20. Bd2 {[%clk 0:00:00]}  Kb8 {[%clk 0:00:00]} 21. Bc3 {[%clk 0:00:00]}  Rc8 {[%clk 0:00:00]} 22. Qe2 {[%clk 0:00:00]}  Ng3 {[%clk 0:00:00]} 23. Qd3 {[%clk 0:00:00]}  Nxh1 {[%clk 0:00:00]} 24. Rxh1 {[%clk 0:00:00]}  a5 {[%clk 0:00:00]} 25. Ka2 {[%clk 0:00:00]}  a4 {[%clk 0:00:00]} 26. Nbd2 {[%clk 0:00:00]}  Na5 {[%clk 0:00:00]} 27. g6 {[%clk 0:00:00]}  fxg6 {[%clk 0:00:00]} 28. Qxg6 {[%clk 0:00:00]}  Nc4 {[%clk 0:00:00]} 29. Nxc4 {[%clk 0:00:00]}  Rxc4 {[%clk 0:00:00]} 30. Rxh5 {[%clk 0:00:00]}  Rxh5 {[%clk 0:00:00]} 31. Qxh5 {[%clk 0:00:00]}  Ka7 {[%clk 0:00:00]} 32. Qe8 {[%clk 0:00:00]}  Bc5 {[%clk 0:00:00]} 33. Ng5 {[%clk 0:00:00]}  d4 {[%clk 0:00:00]} 34. Bb4 {[%clk 0:00:00]}  Bxb4 {[%clk 0:00:00]} 35. Qxa4+ {[%clk 0:00:00]}  Qa5 {[%clk 0:00:00]} 36. Qxa5+ {[%clk 0:00:00]}  Bxa5 {[%clk 0:00:00]} 37. Nxe6 {[%clk 0:00:00]}  Rxc2 {[%clk 0:00:00]} 38. Nxd4 {[%clk 0:00:00]}  Rh2 {[%clk 0:00:00]} 39. Kb3 {[%clk 0:00:00]}  Bc7 {[%clk 0:00:00]} 40. e6 {[%clk 0:00:00]}  Rh7 {[%clk 0:00:00]} 41. Kc4 {[%clk 0:00:00]}  Kb6 {[%clk 0:00:00]} 42. Kd5 {[%clk 0:00:00]}  Rh5+ {[%clk 0:00:00]} 43. Ke4 {[%clk 0:00:00]}  Re5+ {[%clk 0:00:00]} 44. Kd3 {[%clk 0:00:00]}  Kc5 {[%clk 0:00:00]} 45. b4+ {[%clk 0:00:00]}  Kd6 {[%clk 0:00:00]} 46. Kc4 {[%clk 0:00:00]}  Bb6 {[%clk 0:00:00]} 47. Nb5+ {[%clk 0:00:00]}  Kxe6 {[%clk 0:00:00]} 48. a4 {[%clk 0:00:00]}  Re4+ {[%clk 0:00:00]} 49. Kb3 {[%clk 0:00:00]}  Rh4 {[%clk 0:00:00]} 50. a5 {[%clk 0:00:00]}  Bf2 {[%clk 0:00:00]} 51. Nc7+ {[%clk 0:00:00]}  Kd6 {[%clk 0:00:00]} 52. Nb5+ {[%clk 0:00:00]}  Kc6 {[%clk 0:00:00]} 53. Nc3 {[%clk 0:00:00]}  Be1 {[%clk 0:00:00]} 54. b5+ {[%clk 0:00:00]}  Kc5 {[%clk 0:00:00]} 55. a6 {[%clk 0:00:00]}  Bxc3 {[%clk 0:00:00]} 56. a7 {[%clk 0:00:00]}  Rh8 {[%clk 0:00:00]} 57. Kxc3 {[%clk 0:00:00]}  Kxb5 {[%clk 0:00:00]} 0-1


[Site "https://www.chess.com"]

[Event "Titled Tuesday Blitz August 16 Late 2022"]
[White "Kovacevic, Radmila"]
[Black "Acosta Cruz, Oscar Yosimar"]
[WhiteFideId "933171"]
[BlackFideId "5111269"]
[WhiteElo "2157"]
[BlackElo "2147"]
[Result "0-1"]
[Round "06"]
[TimeControl "180+1"]
[Date "2022.08.18"]
[WhiteClock "0:00:00"]
[BlackClock "0:00:00"]

1. d4 {[%clk 0:00:00]}  Nf6 {[%clk 0:00:00]} 2. c4 {[%clk 0:00:00]}  e6 {[%clk 0:00:00]} 3. Nc3 {[%clk 0:00:00]}  Bb4 {[%clk 0:00:00]} 4. a3 {[%clk 0:00:00]}  Bxc3+ {[%clk 0:00:00]} 5. bxc3 {[%clk 0:00:00]}  d5 {[%clk 0:00:00]} 6. c5 {[%clk 0:00:00]}  O-O {[%clk 0:00:00]} 7. Bg5 {[%clk 0:00:00]}  Nbd7 {[%clk 0:00:00]} 8. f3 {[%clk 0:00:00]}  Qe8 {[%clk 0:00:00]} 9. Rb1 {[%clk 0:00:00]}  e5 {[%clk 0:00:00]} 10. Qd2 {[%clk 0:00:00]}  c6 {[%clk 0:00:00]} 11. Nh3 {[%clk 0:00:00]}  h6 {[%clk 0:00:00]} 12. Bh4 {[%clk 0:00:00]}  Nh7 {[%clk 0:00:00]} 13. g4 {[%clk 0:00:00]}  b6 {[%clk 0:00:00]} 14. g5 {[%clk 0:00:00]}  hxg5 {[%clk 0:00:00]} 15. Nxg5 {[%clk 0:00:00]}  bxc5 {[%clk 0:00:00]} 16. Nxh7 {[%clk 0:00:00]}  Kxh7 {[%clk 0:00:00]} 17. Rg1 {[%clk 0:00:00]}  Rh8 {[%clk 0:00:00]} 18. Bh3 {[%clk 0:00:00]}  Kg8 {[%clk 0:00:00]} 19. Qg5 {[%clk 0:00:00]}  g6 {[%clk 0:00:00]} 20. Bf5 {[%clk 0:00:00]}  Nf8 {[%clk 0:00:00]} 21. Bc2 {[%clk 0:00:00]}  e4 {[%clk 0:00:00]} 22. fxe4 {[%clk 0:00:00]}  dxe4 {[%clk 0:00:00]} 23. dxc5 {[%clk 0:00:00]}  Ne6 {[%clk 0:00:00]} 24. Qf6 {[%clk 0:00:00]}  Ng7 {[%clk 0:00:00]} 25. Bb3 {[%clk 0:00:00]}  Be6 {[%clk 0:00:00]} 26. Bc2 {[%clk 0:00:00]}  Bd5 {[%clk 0:00:00]} 27. c4 {[%clk 0:00:00]}  Bxc4 {[%clk 0:00:00]} 28. Rb7 {[%clk 0:00:00]}  Qe6 {[%clk 0:00:00]} 29. Rxg6 {[%clk 0:00:00]}  Qxf6 {[%clk 0:00:00]} 30. Bxf6 {[%clk 0:00:00]}  fxg6 {[%clk 0:00:00]} 31. Rxg7+ {[%clk 0:00:00]}  Kf8 {[%clk 0:00:00]} 32. Rc7 {[%clk 0:00:00]}  Rxh2 {[%clk 0:00:00]} 33. Bxe4 {[%clk 0:00:00]}  Rxe2+ {[%clk 0:00:00]} 34. Kd1 {[%clk 0:00:00]}  Rxe4 {[%clk 0:00:00]} 35. Be7+ {[%clk 0:00:00]}  Rxe7 {[%clk 0:00:00]} 36. Rxc6 {[%clk 0:00:00]}  Rd8+ {[%clk 0:00:00]} 37. Kc1 {[%clk 0:00:00]}  Re2 {[%clk 0:00:00]} 38. Rxg6 {[%clk 0:00:00]}  a5 {[%clk 0:00:00]} 39. Rf6+ {[%clk 0:00:00]}  Ke7 {[%clk 0:00:00]} 40. Rf4 {[%clk 0:00:00]}  Bb3 {[%clk 0:00:00]} 41. Rf1 {[%clk 0:00:00]}  Rdd2 {[%clk 0:00:00]} 42. c6 {[%clk 0:00:00]}  Kd6 {[%clk 0:00:00]} 43. c7 {[%clk 0:00:00]}  Kxc7 {[%clk 0:00:00]} 44. a4 {[%clk 0:00:00]}  Kb6 {[%clk 0:00:00]} 45. Rf6+ {[%clk 0:00:00]}  Kc5 {[%clk 0:00:00]} 46. Rf5+ {[%clk 0:00:00]}  Kb4 {[%clk 0:00:00]} 47. Rf4+ {[%clk 0:00:00]}  Ka3 {[%clk 0:00:00]} 48. Rc4 {[%clk 0:00:00]}  Rd1# {[%clk 0:00:00]} 0-1


[Site "https://www.chess.com"]